bitfinex/quotes_ETHUSD_20220219
["timestamp","ask_amount","ask_price","bid_price","bid_amount"]
[1645260591054,0.89429,2796.5,2796.1,0.00213471]
[1645260591857,1.2423,2796.7,2795.8,0.00367956]
[1645260592056,3.5,2796.6,2795.8,0.00367956]
[1645260592254,3.4126,2796.7,2796.2,0.00213469]
[1645260592472,1.96716,2796.9,2796.2,0.00213469]
[1645260592473,5.37976,2796.9,2796.2,0.00213469]
[1645260592663,5.7824,2797.2,2796.3,0.89408]
[1645260592861,5.7824,2797.2,2796.2,0.00213469]
[1645260592862,2.3698,2797.2,2796.4,0.43267956]
[1645260593063,1.1282,2797.7,2796.4,0.429]
[1645260593064,3.5,2797.5,2796.4,0.429]
[1645260593264,3.5,2797.5,2796.9,0.85483685]
[1645260593566,4.59024751,2797.7,2796.9,0.85483685]
[1645260593756,4.59024751,2797.7,2796.8,0.43267956]
[1645260593961,3.5,2797.6,2796.8,0.43267956]
[1645260594160,3.4126,2797.5,2796.8,0.43267956]
[1645260594434,3.4126,2797.5,2796.8,0.00367956]
[1645260594635,1.09024751,2797.7,2797.1,0.00213473]
[1645260594835,3.4126,2797.5,2797.1,0.00213473]
[1645260595037,4.30658,2797.5,2797.1,0.00213473]
[1645260595638,3.4126,2797.4,2796.7,0.00367956]
[1645260595938,3.4126,2797.4,2797.2,0.00206266]
[1645260596737,3.4126,2797.4,2796.7,0.00367956]
[1645260597134,3.4126,2797.4,2797.2,0.00206266]
[1645260597738,3.4126,2797.6,2797.2,0.00206266]
[1645260597939,3.4126,2797.9,2796.7,3.67860395]
[1645260598152,3.4126,2797.9,2796.8,2.34754467]
[1645260598352,2.41819997,2798.1,2797.2,0.00206499]
[1645260598659,7.7151,2798.2,2797.2,0.89581499]
[1645260598660,4.5736,2798.2,2797.2,0.89581499]
[1645260598953,4.5736,2798.2,2797.6,1.97266423]
[1645260598954,3.4126,2798.2,2797.6,1.97266423]
[1645260599553,0.9682693,2798.5,2797.6,0.0019473]
[1645260599755,3.4126,2797.7,2797.6,0.0019473]
[1645260600153,0.8939,2797.8,2797.6,0.0019473]
[1645260600352,4.3065,2797.8,2796.8,3.3605517]
[1645260600552,4.3065,2797.8,2797.0,1.0541808]
[1645260600751,4.3065,2797.8,2797.5,0.00194731]
[1645260601052,0.8939,2797.8,2797.5,0.00194731]
[1645260601250,3.4126,2797.6,2797.5,0.00194731]
[1645260601450,0.8939,2797.8,2797.5,0.00194731]
[1645260601659,0.8939,2797.8,2797.3,0.01224304]
[1645260601904,3.4126,2797.5,2797.4,0.00195093]
[1645260602701,3.4126,2797.7,2797.4,0.00195093]
[1645260602903,5.20047,2797.9,2797.3,0.01224304]
[1645260603104,0.1787,2798.3,2797.3,0.01421111]
[1645260603105,0.89379,2798.0,2797.3,0.01421111]
[1645260603304,3.4126,2798.2,2797.3,0.01421111]
[1645260603904,3.4126,2798.2,2797.7,0.9135883]
[1645260604221,3.4126,2798.2,2796.9,5.30819402]
[1645260604222,1.61877641,2797.5,2796.9,4.466e-05]
[1645260604408,3.42488816,2797.0,2796.9,4.466e-05]
[1645260605108,1.1833817,2796.6,2796.4,10.85]
[1645260605306,4.7611555,2796.6,2796.4,10.85]
[1645260605662,3.4126,2796.5,2796.4,10.85387543]
[1645260606459,3.4126,2796.5,2796.4,10.85]
[1645260607759,5.2017,2796.5,2796.4,10.85]
[1645260607957,8.7017,2796.5,2796.4,10.85]
[1645260608564,6.9126,2796.5,2796.4,10.85]
[1645260608763,6.9126,2796.5,2796.0,0.00367956]
[1645260608764,7.80711,2796.5,2796.0,0.00367956]
[1645260608963,7.80711,2796.5,2795.5,0.00367956]
[1645260608964,4.30718,2796.1,2795.5,0.00367956]
[1645260609163,3.5,2796.0,2795.9,0.04089541]
[1645260609429,6.9126,2796.0,2795.9,0.04089541]
[1645260609823,8.08273443,2796.0,2795.9,0.04089541]
[1645260610023,8.08273443,2796.0,2795.1,0.00367956]
[1645260610222,8.08273443,2796.0,2795.8,0.00217792]
[1645260610223,0.89454,2795.9,2795.8,0.00217792]
[1645260610524,6.9126,2795.9,2795.8,0.00217792]
[1645260611122,11.89478,2795.8,2795.4,0.04138661]
[1645260611324,4.47255987,2795.5,2794.9,0.00367956]
[1645260611722,1.05995987,2795.5,2794.9,0.00367956]
[1645260611927,3.4126,2795.4,2794.9,0.00367956]
[1645260612123,15.47387,2795.8,2794.9,0.00367956]
[1645260612124,11.0,2795.8,2794.9,0.00367956]
[1645260612322,1.3528,2796.2,2794.8,0.20434167]
[1645260612323,2.06863,2796.2,2794.8,0.20434167]
[1645260612523,2.06863,2796.2,2794.8,1.80534046]
[1645260612724,3.4126,2795.5,2794.8,1.80534046]
[1645260613256,3.4126,2795.5,2794.8,0.89452]
[1645260613456,3.4126,2795.5,2795.2,0.9347819]
[1645260613658,3.4126,2796.0,2795.2,0.9347819]
[1645260614060,3.4126,2795.9,2795.2,0.9347819]
[1645260615058,3.4126,2795.9,2795.4,0.0023202]
[1645260615562,3.45585688,2796.5,2795.4,0.0023202]
[1645260615760,3.45585688,2796.5,2795.4,0.4313202]
[1645260615963,0.04325688,2796.5,2795.5,8.5]
[1645260616160,0.04325688,2796.5,2795.6,0.429]
[1645260616360,0.04325688,2796.5,2796.0,1.13989026]
[1645260616757,0.13819997,2796.9,2795.8,0.429]
[1645260617018,0.13819997,2796.9,2795.7,0.1398146]
[1645260617019,4.30687,2796.3,2795.7,0.00232017]
[1645260617218,0.89427,2796.3,2795.4,0.429]
[1645260617414,0.689769,2796.3,2795.5,0.3]
[1645260617616,0.689769,2796.3,2795.8,0.04408429]
[1645260617812,0.689769,2796.3,2796.0,1.03269]
[1645260618212,4.102369,2796.3,2796.0,1.03269]
[1645260618610,0.689769,2796.3,2796.0,1.03269]
[1645260619012,0.689769,2796.3,2795.7,0.00232025]
[1645260619712,0.689769,2796.3,2795.5,0.89429]
[1645260619913,0.689769,2796.3,2795.7,0.99283441]
[1645260620656,1.78861,2796.6,2795.7,1.88704441]
[1645260620657,0.89421,2796.6,2795.7,1.88704441]
[1645260620859,0.89421,2796.6,2795.7,5.38472422]
[1645260621058,0.89421,2796.6,2795.7,5.38704441]
[1645260621259,0.89421,2796.6,2795.7,0.99283441]
[1645260621666,0.02506455,2796.2,2795.7,0.99283441]
[1645260621969,0.02506455,2796.2,2795.7,0.99051422]
[1645260622165,0.02506455,2796.2,2795.4,1.35811773]
[1645260622166,0.02506455,2796.2,2795.4,1.3233122]
[1645260622466,0.02506455,2796.2,2795.7,0.00232017]
[1645260622665,3.4126,2795.8,2795.4,0.04408738]
[1645260622862,3.4126,2795.5,2795.4,0.04408738]
[1645260623261,3.4126,2795.5,2795.1,0.007]
[1645260623662,1.00237201,2795.6,2795.1,0.007]
[1645260625912,1.00237201,2795.6,2795.2,0.00232028]
[1645260626913,1.00237201,2795.6,2795.1,0.007]
[1645260627110,1.00237201,2795.6,2795.3,0.00232026]
[1645260627111,0.02411818,2795.5,2795.3,0.00232026]
[1645260628152,0.02411818,2795.5,2795.1,0.007]
[1645260628353,0.02411818,2795.5,2795.3,0.00232026]
[1645260628558,0.84355693,2795.4,2795.3,0.00232026]
[1645260628754,0.02411818,2795.5,2795.3,0.00232026]
[1645260629353,0.02411818,2795.5,2795.1,0.007]
[1645260629553,0.02411818,2795.5,2795.3,0.00232026]
[1645260630557,0.02411818,2795.5,2795.1,0.007]
[1645260630768,0.89458,2795.4,2795.3,0.00232026]
[1645260630958,4.30718,2795.4,2795.3,2.026e-05]
[1645260631162,7.80718,2795.4,2795.3,2.026e-05]
[1645260631358,4.48588,2795.4,2795.3,2.026e-05]
[1645260631557,7.98588,2795.4,2795.3,2.026e-05]
[1645260631756,7.98588,2795.4,2795.3,0.01108408]
[1645260632008,4.48588,2795.4,2795.3,0.01108408]
[1645260632207,4.48588,2795.4,2795.1,5.137e-05]
[1645260632208,11.011,2795.3,2795.1,5.137e-05]
[1645260632409,6.9126,2795.2,2795.1,5.137e-05]
[1645260632614,3.5913,2795.2,2795.1,5.137e-05]
[1645260633509,7.0913,2795.2,2795.1,5.137e-05]
[1645260634010,8.88119,2795.2,2795.1,5.137e-05]
[1645260634708,8.93223498,2795.2,2795.1,5.137e-05]
[1645260634910,8.03736498,2795.2,2795.1,5.137e-05]
[1645260635312,7.0913,2795.2,2795.1,5.137e-05]
[1645260635763,3.4126,2795.2,2795.1,5.137e-05]
[1645260636160,5.2025,2795.2,2795.1,5.137e-05]
[1645260636362,3.4126,2795.2,2795.1,5.137e-05]
[1645260636559,4.48302771,2795.2,2795.1,5.137e-05]
[1645260636760,3.4126,2795.2,2795.1,5.137e-05]
[1645260636963,9.9126,2795.2,2795.1,6.252e-05]
[1645260637160,10.80762,2795.2,2795.1,6.252e-05]
[1645260637361,8.20255,2795.2,2795.1,6.252e-05]
[1645260637767,11.70255,2795.2,2795.1,6.252e-05]
[1645260638867,12.74349513,2795.2,2795.1,6.252e-05]
[1645260639066,11.70255,2795.2,2795.1,6.252e-05]
[1645260639265,11.0,2795.1,2795.0,0.00230617]
[1645260639517,11.70255,2795.2,2795.0,0.00230617]
[1645260639518,3.4126,2795.2,2795.0,0.00230617]
[1645260640210,3.4126,2795.2,2794.5,0.429]
[1645260640416,3.4126,2795.2,2795.0,0.00230619]
[1645260641309,3.4126,2795.2,2794.5,0.429]
[1645260641512,3.4126,2795.1,2794.5,0.429]
[1645260641712,0.04459625,2795.2,2795.0,0.00230619]
[1645260642009,3.4126,2795.1,2795.0,0.00230619]
[1645260642609,3.4126,2795.1,2794.5,0.429]
[1645260642812,0.04459625,2795.2,2794.9,0.00210237]
[1645260643015,3.4126,2795.0,2794.9,0.00210237]
[1645260643660,3.4126,2795.0,2794.3,0.429]
[1645260643862,3.4126,2795.0,2794.4,0.89969367]
[1645260644061,3.4126,2795.0,2794.8,0.0021024]
[1645260644262,4.30741,2795.0,2794.8,0.0021024]
[1645260644664,3.4126,2795.0,2794.8,0.0021024]
[1645260644865,3.4126,2795.0,2794.3,0.429]
[1645260645070,3.2803,2795.1,2794.3,0.58853873]
[1645260645269,3.2803,2795.1,2794.8,0.00210241]
[1645260645671,0.00089625,2795.2,2794.8,0.00210241]
[1645260646067,3.2803,2795.1,2794.7,1.48354793]
[1645260646466,3.2803,2795.1,2794.9,0.00193968]
[1645260646665,0.04490711,2795.0,2794.9,0.00193968]
[1645260647408,0.04490711,2795.0,2793.9,2.6842538]
[1645260647606,0.04490711,2795.0,2793.9,1.77884584]
[1645260647607,5.5,2794.9,2793.9,1.77884584]
[1645260647808,3.2803,2794.9,2794.1,2.07705269]
[1645260648008,4.24305039,2795.0,2794.1,2.37705269]
[1645260648210,4.24305039,2795.0,2794.1,2.57461369]
[1645260648406,4.24305039,2795.0,2794.1,2.37705269]
[1645260648607,3.32520711,2795.0,2794.1,2.52226771]
[1645260648809,3.32520711,2795.0,2794.1,2.37699269]
[1645260649007,3.32520711,2795.0,2794.2,0.8946895]
[1645260649208,3.2803,2794.8,2794.2,0.3]
[1645260649607,3.2803,2794.8,2794.0,2.25926449]
[1645260649608,4.30414537,2794.8,2794.0,2.25926449]
[1645260649808,1.02384537,2794.8,2794.0,0.6084564]
[1645260650007,0.00121816,2794.6,2794.1,0.04035807]
[1645260650863,3.2803,2794.7,2794.1,0.04035807]
[1645260651061,1.02384537,2794.8,2794.1,0.04035807]
[1645260651259,0.00230879,2794.5,2794.2,0.00230906]
[1645260651463,0.00230879,2794.5,2794.0,1.16590986]
[1645260652063,3.2803,2794.7,2794.0,1.16590986]
[1645260654716,0.0012173,2794.5,2794.0,1.16590986]
[1645260655117,0.0012173,2794.5,2794.1,0.89477]
[1645260655520,0.0012173,2794.5,2794.0,1.16590986]
[1645260655521,3.2815173,2794.5,2794.0,1.16590986]
[1645260655724,3.2803,2794.5,2794.0,1.16590986]
[1645260655920,3.2803,2794.5,2794.1,0.00230917]
[1645260656125,3.2826088,2794.5,2794.1,0.00230917]
[1645260656334,3.2826088,2794.5,2794.1,9.17e-06]
[1645260656335,3.2803,2794.2,2794.1,9.17e-06]
[1645260656725,6.7803,2794.2,2794.1,9.17e-06]
[1645260656922,6.7803,2794.2,2793.6,0.25]
[1645260657123,3.2803,2793.7,2793.3,0.00364652]
[1645260657322,0.88340415,2793.6,2793.3,0.00364652]
[1645260658160,3.2803,2793.7,2793.3,0.00364652]
[1645260658363,3.6789,2794.1,2793.3,0.00364652]
[1645260658364,3.2803,2793.9,2793.3,0.00364652]
[1645260658567,0.1789,2794.1,2793.3,0.00364652]
[1645260658766,4.4354,2794.2,2793.3,0.00364652]
[1645260658767,5.33045,2794.2,2793.3,0.00364652]
[1645260658962,3.2803,2794.5,2793.3,0.00364652]
[1645260659165,1.76483515,2794.6,2793.8,0.84673471]
[1645260659166,0.83456759,2794.6,2793.8,0.84673471]
[1645260659364,0.02545056,2794.7,2793.8,1.27573471]
[1645260659563,3.1651,2794.5,2793.8,1.27573471]
[1645260659765,3.16631885,2794.5,2793.8,1.27573471]
[1645260660564,3.1651,2794.5,2793.8,1.27573471]
[1645260660765,3.16740878,2794.5,2794.0,0.00230918]
[1645260661368,3.16740878,2794.5,2794.3,1.09886367]
[1645260661564,3.11620878,2794.5,2794.3,1.09886367]
[1645260661765,3.1139,2794.5,2794.3,1.09886367]
[1645260662017,0.00230881,2794.5,2794.3,1.09886367]
[1645260662222,3.11620881,2794.5,2794.3,1.09886367]
[1645260662622,0.00230881,2794.5,2794.3,1.09886367]
[1645260662825,0.00230881,2794.5,2794.4,0.59341755]
[1645260663023,3.1139,2795.1,2794.4,0.59341755]
[1645260663220,0.00230881,2794.5,2794.4,0.59341755]
[1645260664126,0.00230881,2794.5,2794.4,21.88057805]
[1645260664323,3.5,2795.7,2794.5,0.16649617]
[1645260664523,3.5,2796.1,2794.6,0.429]
[1645260664721,3.5,2796.1,2794.6,0.623091]
[1645260665422,4.35592321,2796.1,2795.2,1.07017386]
[1645260665669,3.1139,2795.3,2794.9,1.7888218]
[1645260665867,0.00210967,2795.5,2794.8,0.429]
[1645260666570,4.24178146,2794.9,2794.5,0.25]
[1645260666775,4.24178146,2794.9,2794.3,0.1787]
[1645260666776,3.1139,2794.7,2794.3,0.1787]
[1645260666968,1.12788146,2794.9,2794.5,0.01086106]
[1645260666969,3.1139,2794.8,2794.5,0.01086106]
[1645260667167,1.12788146,2794.9,2794.5,0.01086106]
[1645260667769,3.1139,2794.6,2794.5,0.01086106]
[1645260668575,0.00210988,2794.8,2794.5,0.01086106]
[1645260668774,3.11600988,2794.8,2794.5,0.01086106]
[1645260669069,1.12788146,2794.9,2794.5,0.01086106]
[1645260669414,0.00210989,2794.8,2794.5,0.01086106]
[1645260669809,3.07523446,2794.6,2794.5,0.01086106]
[1645260670212,3.07523446,2794.8,2794.5,0.01086106]
[1645260670510,0.00213732,2794.7,2794.5,0.01086106]
[1645260671409,3.43683446,2795.0,2794.5,0.01086106]
[1645260671708,0.0021373,2794.7,2794.5,0.01086106]
[1645260671913,0.01260911,2794.6,2794.3,0.1787]
[1645260672108,0.01260911,2794.6,2794.3,0.1287]
[1645260672910,0.01474646,2794.6,2794.3,0.1287]
[1645260673862,0.01260911,2794.6,2794.3,0.1287]
[1645260674164,0.01474246,2794.6,2794.3,0.1287]
[1645260674962,0.01260911,2794.6,2794.3,0.1287]
[1645260675165,0.01474246,2794.6,2794.3,0.1287]
[1645260675565,0.01474246,2794.6,2794.3,0.12105675]
[1645260675763,0.01474246,2794.6,2794.2,0.00364473]
[1645260676266,0.01260911,2794.6,2794.2,0.00364473]
[1645260676462,0.01042558,2794.6,2794.2,0.00364473]
[1645260676664,0.01042558,2794.6,2794.2,0.89838473]
[1645260677913,0.01042558,2794.6,2794.2,0.00364473]
[1645260678117,0.01042558,2794.6,2794.2,0.03399513]
[1645260678317,3.08566004,2794.6,2794.2,0.03399513]
[1645260678515,0.01042558,2794.6,2794.2,0.03399513]
[1645260678715,0.01042558,2794.6,2794.3,0.89473]
[1645260678919,0.01164457,2794.6,2794.3,0.89473]
[1645260679317,0.01164457,2794.6,2794.2,0.92873463]
[1645260679517,0.01150677,2794.7,2794.3,0.11229263]
[1645260679721,0.01150677,2794.7,2794.3,0.11593736]
[1645260679922,0.01150677,2794.7,2794.3,1.01066736]
[1645260680316,1.538e-05,2794.8,2794.3,1.01066736]
[1645260680518,1.538e-05,2794.8,2794.3,0.11593736]
[1645260680772,3.07524984,2794.8,2794.3,0.00364473]
[1645260681167,3.07524984,2794.8,2794.3,0.03399513]
[1645260681569,1.538e-05,2794.8,2794.4,0.11229263]
[1645260681970,0.01212354,2794.6,2794.4,0.11229263]
[1645260682167,0.01212354,2794.6,2794.4,0.14264303]
[1645260682970,3.087358,2794.6,2794.4,0.14264303]
[1645260683168,0.01212354,2794.6,2794.4,0.14264303]
[1645260685714,0.01212354,2794.6,2794.4,0.0303504]
[1645260687019,3.5,2795.2,2794.4,0.0303504]
[1645260687216,0.00230591,2794.7,2794.4,0.0303504]
[1645260688268,5.61293453,2795.3,2794.4,0.0303504]
[1645260688474,0.00230593,2794.7,2794.4,0.0303504]
[1645260689374,3.07523446,2794.9,2794.4,0.0303504]
[1645260689576,3.07523446,2794.5,2794.4,0.0303504]
[1645260689875,3.83023446,2794.5,2794.4,0.0303504]
[1645260692420,1.59239522,2794.5,2794.4,0.0303504]
[1645260692621,0.83739522,2794.5,2794.4,0.0303504]
[1645260694215,3.25413446,2795.0,2794.4,0.0303504]
[1645260694423,0.00230589,2794.7,2794.4,0.0303504]
[1645260695317,3.07523446,2795.0,2794.4,0.14264303]
[1645260695764,3.02523446,2795.0,2794.4,1.03733303]
[1645260695964,0.1789,2795.4,2794.4,1.03733303]
[1645260696170,3.02523446,2795.0,2794.4,1.03733303]
[1645260696367,3.02523446,2795.0,2794.5,0.11229263]
[1645260696770,3.02523446,2795.0,2794.7,0.11229263]
[1645260697166,3.02523446,2795.0,2794.7,0.14264303]
[1645260697772,0.9623351,2795.4,2794.7,0.14264303]
[1645260697971,2.07477,2795.6,2794.7,0.14264303]
[1645260697972,3.02523446,2795.0,2794.7,0.14264303]
[1645260698181,1.1801,2795.6,2795.0,0.11229263]
[1645260698379,3.02523446,2795.1,2794.9,0.11229263]
[1645260698573,3.02523446,2795.1,2794.9,0.54129263]
[1645260698968,3.02523446,2795.6,2794.9,1.42651101]
[1645260699173,3.33293446,2795.8,2795.1,0.11229263]
[1645260699427,3.33293446,2795.8,2795.0,0.89447]
[1645260699428,0.3077,2795.8,2795.3,0.11229263]
[1645260699619,0.3077,2795.8,2795.5,0.11229263]
[1645260699819,0.3077,2795.8,2795.5,0.54129263]
[1645260700219,0.3077,2795.8,2795.5,0.57164303]
[1645260700426,0.31000257,2795.8,2795.5,0.57164303]
[1645260701523,0.3077,2795.8,2795.6,0.11229263]
[1645260701822,0.31000257,2795.8,2795.7,0.11229263]
[1645260702422,0.31000257,2795.8,2795.7,0.0303504]
[1645260702621,0.3077,2795.8,2795.7,0.0303504]
[1645260703280,0.0001,2795.8,2795.7,0.4593504]
[1645260703472,0.0001,2795.8,2795.7,0.7593504]
[1645260703972,0.0001,2795.8,2795.7,1.0593504]
[1645260704172,0.0001,2795.8,2795.7,0.4593504]
[1645260704373,0.00230253,2795.9,2795.7,0.4593504]
[1645260704974,1.51840414,2796.5,2795.8,1.13576059]
[1645260705173,1.51840414,2796.4,2795.9,0.429]
[1645260705374,1.51840414,2796.3,2795.9,0.4593504]
[1645260705581,4.4779505,2796.7,2795.9,0.4593504]
[1645260705778,1.51849601,2796.6,2795.9,0.4593504]
[1645260706179,3.5,2796.5,2795.9,0.4593504]
[1645260706376,0.00230233,2796.4,2795.9,0.4593504]
[1645260706582,1.52079436,2796.4,2795.9,0.4593504]
[1645260707026,0.00230233,2796.4,2795.9,0.4593504]
[1645260707426,5.01850914,2796.5,2795.9,0.4593504]
[1645260707632,3.02523446,2796.0,2794.7,10.51739288]
[1645260707837,3.02523446,2796.0,2794.1,2.68297]
[1645260707838,8.03808463,2794.8,2793.6,0.47096009]
[1645260708030,8.03808463,2794.8,2792.4,0.2467657]
[1645260708031,3.03724958,2793.7,2792.8,0.25]
[1645260708246,3.02523446,2792.9,2792.4,0.2467657]
[1645260708430,10.93234616,2793.5,2792.4,0.06]
[1645260708629,3.02523446,2792.7,2792.4,0.06]
[1645260708831,3.02523446,2792.7,2792.2,1.04972993]
[1645260708832,1.0,2792.5,2792.2,1.04972993]
[1645260709032,1.0,2792.5,2792.2,0.94972993]
[1645260709230,1.96993,2793.2,2792.2,0.94972993]
[1645260709231,1.0,2792.3,2792.2,0.94972993]
[1645260709730,3.02523446,2792.9,2792.2,0.94972993]
[1645260710030,3.92044446,2792.9,2792.2,0.94972993]
[1645260710230,1.79043,2793.3,2792.4,10.97476554]
[1645260710433,0.2555,2793.9,2792.6,5.0]
[1645260710669,0.2555,2793.9,2792.6,5.18481366]
[1645260710872,0.2555,2793.9,2792.7,0.429]
[1645260711268,3.02523446,2793.7,2793.4,1.17246262]
[1645260711476,3.02523446,2793.7,2793.5,0.429]
[1645260712073,1.15043,2793.9,2793.5,0.429]
[1645260712269,3.02523446,2793.7,2793.5,0.429]
[1645260712469,0.00230361,2793.7,2793.5,0.429]
[1645260713482,3.02523446,2793.8,2793.5,0.429]
[1645260713673,0.89745801,2793.7,2793.5,0.429]
[1645260713871,3.92269247,2793.7,2793.5,0.429]
[1645260714071,3.92269247,2793.7,2792.9,0.00230434]
[1645260714275,0.89512,2793.5,2793.0,0.429]
[1645260714912,0.00230374,2793.4,2793.0,0.429]
[1645260715912,3.92035446,2793.5,2793.0,0.429]
[1645260716118,0.00230376,2793.3,2793.0,0.429]
[1645260716513,0.00230376,2793.3,2792.9,0.00230416]
[1645260716514,3.02523446,2793.1,2792.9,0.00230416]
[1645260717113,3.02523446,2793.1,2792.6,0.25]
[1645260717316,3.0275383,2793.1,2792.9,0.00230407]
[1645260717914,3.0275383,2793.1,2793.0,0.91128448]
[1645260717915,0.00230384,2793.1,2793.0,0.91128448]
[1645260718169,0.89521,2793.7,2793.0,0.91128448]
[1645260718170,3.02523446,2793.4,2793.0,0.91128448]
[1645260718367,3.5,2793.7,2793.0,0.91128448]
[1645260718569,0.00230382,2793.2,2793.0,0.91128448]
[1645260718968,0.00230382,2793.2,2792.9,0.00230409]
[1645260719369,0.89515,2793.3,2792.7,0.429]
[1645260719667,0.89515,2793.3,2792.9,0.00230409]
[1645260719668,0.00230382,2793.2,2792.9,0.00230409]
[1645260720667,0.89515,2793.3,2792.8,1.02708254]
[1645260720869,0.00230382,2793.2,2792.9,0.00230409]
[1645260721930,3.02523446,2793.5,2793.1,0.01368951]
[1645260722127,0.2555,2793.9,2793.1,0.01368951]
[1645260722128,0.00230382,2793.2,2793.1,0.01368951]
[1645260722327,0.25402152,2793.9,2793.1,0.01368951]
[1645260722528,3.02523446,2793.5,2793.1,0.01368951]
[1645260722729,3.02523446,2793.6,2793.1,0.01368951]
[1645260723328,0.89508,2793.5,2793.1,0.01368951]
[1645260723936,3.02523446,2793.4,2793.1,0.01368951]
[1645260724331,0.89508,2793.5,2793.1,0.01368951]
[1645260724732,3.02523446,2793.2,2793.1,0.01368951]
[1645260725773,6.52523446,2793.2,2793.1,0.01368951]
[1645260725970,6.52523446,2793.2,2792.4,0.679]
[1645260725971,10.02523446,2793.2,2792.4,0.25]
[1645260726170,10.02523446,2793.2,2792.1,0.00655322]
[1645260726171,3.02523446,2792.5,2792.1,0.00655322]
[1645260726367,1.07454,2793.1,2792.1,0.00655322]
[1645260726569,3.02523446,2792.2,2792.1,0.00655322]
[1645260726769,3.5,2793.0,2792.1,0.00655322]
[1645260726967,3.02523446,2792.5,2792.2,0.00230433]
[1645260727371,1.2069,2792.9,2791.2,0.0501]
[1645260727372,10.5,2792.2,2791.2,0.0501]
[1645260727571,7.0,2791.5,2791.2,0.0501]
[1645260727768,10.5,2792.2,2791.2,0.0501]
[1645260727769,3.02523446,2791.4,2791.2,0.0501]
[1645260728378,13.94523446,2791.4,2791.2,0.0501]
[1645260728569,4.81698446,2791.4,2791.2,0.0501]
[1645260729521,15.73698446,2791.4,2791.2,0.0001]
[1645260729721,15.73698446,2791.4,2791.0,0.01791463]
[1645260729722,11.0,2791.3,2791.0,0.01791463]
[1645260729921,3.02523446,2791.1,2791.0,0.01791463]
[1645260730831,6.52523446,2791.1,2791.0,0.01791463]
[1645260731023,9.0,2791.0,2790.5,1.8808374]
[1645260731228,3.92157446,2790.6,2790.5,1.8808374]
[1645260731426,6.5,2790.5,2790.4,0.055956]
[1645260731823,9.5,2790.3,2789.8,0.03387401]
[1645260732027,9.5,2790.3,2789.3,0.429]
[1645260732028,3.03780018,2789.9,2789.3,0.0158296]
[1645260732227,0.89665,2789.8,2789.3,0.0158296]
[1645260732423,0.89665,2789.8,2788.9,0.0425119]
[1645260732424,3.03737878,2789.4,2788.9,0.0425119]
[1645260732626,3.03805321,2789.0,2788.1,0.43703197]
[1645260732824,0.28024018,2789.5,2787.6,0.01395734]
[1645260732825,3.5,2789.2,2788.7,0.98520895]
[1645260733022,0.2767,2789.1,2787.6,0.01395734]
[1645260733275,4.95688843,2789.5,2788.0,0.89657]
[1645260733276,0.13819997,2789.5,2788.0,0.89657]
[1645260733470,0.13819997,2789.5,2788.1,5.89376554]
[1645260733669,0.13819997,2789.5,2788.6,0.007]
[1645260734570,3.03523446,2789.6,2788.6,0.09311616]
[1645260734771,3.5,2790.2,2788.7,0.429]
[1645260734973,3.03523446,2790.0,2788.7,0.429]
[1645260735173,3.03523446,2790.0,2788.8,0.08611616]
[1645260735371,3.03523446,2790.0,2789.0,1.96476554]
[1645260735372,0.00129286,2789.9,2789.0,1.96476554]
[1645260735572,0.00129286,2789.9,2789.1,1.10154713]
[1645260735771,0.00129286,2789.9,2789.2,0.429]
[1645260735971,3.50129286,2789.9,2789.2,0.51511616]
[1645260736175,3.50129286,2789.9,2788.9,0.25]
[1645260736176,3.03523446,2789.4,2788.9,0.25]
[1645260736573,0.1792,2790.4,2789.4,0.00096802]
[1645260736574,3.03523446,2789.6,2789.4,0.00096802]
[1645260737021,3.03523446,2789.6,2789.5,1.00902029]
[1645260738021,3.03523446,2789.6,2789.4,0.00096802]
[1645260738820,3.03523446,2789.6,2788.8,0.89631]
[1645260739022,3.03523446,2789.6,2789.5,1.19238591]
[1645260739631,11.0,2789.5,2788.5,1.76787649]
[1645260739846,11.0,2789.5,2787.6,1.01395734]
[1645260739847,3.03523446,2788.6,2787.6,1.01395734]
[1645260740027,3.5,2789.4,2787.3,3.73850734]
[1645260740028,3.03523446,2788.4,2787.3,3.73850734]
[1645260740232,3.03523446,2788.3,2787.3,0.00630276]
[1645260740678,0.1792,2789.1,2787.3,0.00630276]
[1645260740679,0.01206119,2788.2,2787.5,0.93600801]
[1645260740882,4.6463,2789.2,2787.6,3.5]
[1645260740883,0.01221696,2789.2,2787.6,3.5]
[1645260741077,3.03523446,2789.3,2788.0,1.96476554]
[1645260741280,3.03523446,2789.3,2787.6,3.929]
[1645260741281,3.03523446,2789.6,2788.1,3.929]
[1645260741472,0.1793,2790.2,2787.7,0.5]
[1645260741473,2.63351369,2790.2,2788.2,0.429]
[1645260741672,3.03523446,2789.6,2788.9,0.84864802]
[1645260741880,3.03523446,2789.1,2788.2,0.8965]
[1645260742076,0.1792,2789.5,2788.2,0.8965]
[1645260742077,0.01227351,2789.5,2788.2,0.8965]
[1645260742274,0.01227351,2789.5,2788.3,3.5]
[1645260742475,3.04750797,2789.5,2788.2,0.429]
[1645260742673,3.04750797,2789.5,2788.5,0.00095523]
[1645260742874,3.03523446,2789.2,2788.5,0.00095523]
[1645260743478,3.03523446,2789.0,2788.4,1.79268]
[1645260743673,0.01227351,2789.5,2788.2,0.429]
[1645260743873,3.03523446,2789.3,2788.7,0.00225379]
[1645260744072,10.93227351,2789.5,2788.7,0.00225379]
[1645260744272,3.03523446,2789.0,2788.7,0.00225379]
[1645260744513,0.89663,2789.4,2788.7,0.00225379]
[1645260744719,3.03523446,2789.2,2788.2,0.89654]
[1645260744919,3.03523446,2788.5,2788.0,0.00977656]
[1645260745118,10.92,2789.2,2788.0,0.00977656]
[1645260745119,3.03523446,2788.2,2788.0,0.00977656]
[1645260745318,10.92,2788.5,2788.0,0.00977656]
[1645260745515,0.8968,2789.0,2788.0,0.00977656]
[1645260745516,3.03523446,2788.1,2788.0,0.00977656]
[1645260745917,0.2673,2788.2,2788.0,0.00977656]
[1645260746115,3.03523446,2788.3,2788.0,0.00977656]
[1645260746313,3.03523446,2788.1,2788.0,0.00977656]
[1645260746912,5.30599389,2789.1,2788.0,0.00977656]
[1645260746913,3.03523446,2788.3,2788.0,0.00977656]
[1645260747114,3.03523446,2788.5,2788.0,0.00977656]
[1645260747326,1.80599389,2789.1,2788.1,0.429]
[1645260747327,0.01221469,2789.1,2788.1,0.429]
[1645260747517,3.03523446,2788.5,2788.1,0.429]
[1645260748168,3.03523446,2788.5,2788.3,1.06560163]
[1645260748368,3.04744915,2789.1,2788.3,1.06560163]